bitfinex/quotes_BTCUSD_20251031
["timestamp","ask_amount","ask_price","bid_price","bid_amount"]
[1761927292895,0.66215386,110270.0,110260.0,0.19731944]
[1761927293112,0.66215386,110270.0,110260.0,0.22012944]
[1761927293611,0.66215319,110270.0,110260.0,0.22012944]
[1761927293983,0.66660319,110270.0,110260.0,0.19731944]
[1761927294366,0.01545083,110270.0,110260.0,0.22012944]
[1761927294569,0.49766291,110270.0,110260.0,0.22012944]
[1761927294985,0.6790359,110270.0,110260.0,0.22012944]
[1761927295211,0.19682382,110270.0,110260.0,0.22012944]
[1761927296425,0.69326045,110270.0,110260.0,0.22012944]
[1761927297442,0.21104837,110270.0,110260.0,0.22012944]
[1761927297639,0.21549837,110270.0,110260.0,0.19731944]
[1761927298195,0.21549837,110270.0,110260.0,0.01593]
[1761927298802,0.96149981,110270.0,110260.0,0.01593]
[1761927298980,0.96149981,110270.0,110260.0,0.19731944]
[1761927299683,0.96149981,110270.0,110260.0,0.01593]
[1761927301144,0.18138944,110260.0,110250.0,0.19383588]
[1761927301404,0.93184088,110260.0,110250.0,0.20976588]
[1761927301597,0.93184088,110260.0,110250.0,0.02836]
[1761927301799,0.18583944,110260.0,110250.0,0.01243]
[1761927302006,0.93184088,110260.0,110240.0,0.31170242]
[1761927302362,0.18140589,110250.0,110240.0,0.31170242]
[1761927302780,0.92839088,110260.0,110250.0,0.18440589]
[1761927303252,0.93184088,110260.0,110250.0,0.001]
[1761927303474,0.18140589,110250.0,110230.0,0.29021435]
[1761927303691,0.18142235,110240.0,110230.0,0.12074896]
[1761927303915,0.93187379,110240.0,110220.0,0.19052803]
[1761927304143,0.1858888,110230.0,110220.0,0.01593]
[1761927304374,0.93634024,110230.0,110210.0,0.19390164]
[1761927304583,0.18145527,110220.0,110210.0,0.19390164]
[1761927305016,0.18590527,110220.0,110210.0,0.02836]
[1761927305497,0.61061599,110220.0,110210.0,0.20997658]
[1761927306328,0.61606599,110220.0,110210.0,0.00314485]
[1761927306557,0.18690527,110220.0,110210.0,0.18461658]
[1761927306767,0.61161599,110220.0,110210.0,0.28651554]
[1761927307185,0.61061599,110220.0,110210.0,0.28351554]
[1761927307611,0.61061599,110220.0,110210.0,0.08711381]
[1761927307810,0.61061599,110220.0,110210.0,0.08611381]
[1761927308266,0.61061599,110220.0,110210.0,0.00014485]
[1761927308473,3.03977671,110220.0,110210.0,0.00014485]
[1761927308893,3.37977671,110220.0,110210.0,0.00014485]
[1761927309551,3.39661284,110220.0,110210.0,0.00014485]
[1761927309756,3.41084441,110220.0,110210.0,0.00014485]
[1761927309961,3.41384441,110220.0,110210.0,0.00114485]
[1761927310172,3.50366342,110220.0,110210.0,0.00114485]
[1761927310390,3.48382729,110220.0,110210.0,0.00014485]
[1761927310565,3.48882729,110220.0,110210.0,0.00114485]
[1761927311015,3.49821875,110220.0,110210.0,0.00114485]
[1761927311427,3.39682886,110220.0,110210.0,0.00114485]
[1761927312079,3.30700985,110220.0,110210.0,0.00114485]
[1761927314226,3.33428206,110220.0,110210.0,0.00114485]
[1761927318378,3.32005049,110220.0,110210.0,0.00114485]
[1761927320625,3.33683294,110220.0,110210.0,0.00114485]
[1761927321061,3.4035508,110220.0,110210.0,0.00114485]
[1761927321255,3.5200347,110220.0,110210.0,0.00114485]
[1761927321469,3.54136756,110220.0,110210.0,0.00114485]
[1761927321682,3.55360088,110220.0,110210.0,0.00114485]
[1761927321881,3.55560088,110220.0,110210.0,0.00114485]
[1761927322309,3.59178316,110220.0,110210.0,0.00114485]
[1761927324669,2.7549326,110220.0,110210.0,0.00114485]
[1761927324872,3.47529926,110220.0,110210.0,0.00114485]
[1761927325773,3.47329926,110220.0,110210.0,0.00114485]
[1761927325993,3.47529926,110220.0,110210.0,0.00114485]
[1761927326214,3.47329926,110220.0,110210.0,0.00114485]
[1761927326438,3.47774926,110220.0,110210.0,0.00114485]
[1761927326651,3.44156698,110220.0,110210.0,0.00114485]
[1761927327079,3.44356698,110220.0,110210.0,0.00114485]
[1761927327305,3.47974926,110220.0,110210.0,0.00114485]
[1761927327516,3.50641415,110220.0,110210.0,0.00114485]
[1761927329141,0.18152114,110180.0,110160.0,0.19201675]
[1761927329350,0.92855269,110180.0,110160.0,0.19249814]
[1761927329543,0.95402269,110180.0,110170.0,0.02731]
[1761927329670,0.95402269,110180.0,110170.0,0.02797249]
[1761927329868,0.95402269,110180.0,110170.0,0.20951011]
[1761927330166,0.93899269,110180.0,110170.0,0.23381011]
[1761927330377,0.19196114,110180.0,110170.0,0.23381011]
[1761927330607,0.20799114,110180.0,110170.0,0.20951011]
[1761927330829,0.20799114,110180.0,110170.0,0.23381011]
[1761927331048,0.19196114,110180.0,110170.0,0.23381011]
[1761927331241,0.19296114,110180.0,110170.0,0.23881011]
[1761927331491,0.20799114,110180.0,110170.0,0.23881011]
[1761927331977,0.20719557,110180.0,110170.0,0.23881011]
[1761927332400,0.01523443,110180.0,110170.0,0.23881011]
[1761927333060,0.19675557,110180.0,110170.0,0.24081011]
[1761927333285,0.01423443,110180.0,110170.0,0.23381011]
[1761927333497,0.43919257,110180.0,110170.0,0.23381011]
[1761927333748,0.44019257,110180.0,110170.0,0.23381011]
[1761927333951,0.62171371,110180.0,110170.0,0.23381011]
[1761927334133,0.4315781,110180.0,110170.0,0.23381011]
[1761927334341,0.4315781,110180.0,110170.0,0.05227249]
[1761927334552,0.4630281,110180.0,110170.0,0.00066249]
[1761927334703,0.47988653,110180.0,110170.0,0.00066249]
[1761927335754,2.81988653,110180.0,110170.0,0.00066249]
[1761927336177,2.8393082,110180.0,110170.0,0.00066249]
[1761927337381,2.85354391,110180.0,110170.0,0.00066249]
[1761927339270,3.02944509,110180.0,110170.0,0.00066249]
[1761927341895,0.60651224,110160.0,110150.0,0.30908124]
[1761927342107,0.62385281,110160.0,110150.0,0.30000342]
[1761927342372,0.63888281,110160.0,110150.0,0.02742]
[1761927343009,0.18157058,110150.0,110140.0,0.01186]
[1761927343207,0.60652872,110150.0,110140.0,0.21774707]
[1761927343420,0.60652872,110150.0,110140.0,0.23319707]
[1761927343975,0.63199872,110150.0,110140.0,0.18158707]
[1761927344195,0.63199872,110150.0,110140.0,0.20889707]
[1761927344443,0.63199872,110150.0,110140.0,0.02831]
[1761927344878,0.63199872,110150.0,110140.0,0.02731]
[1761927345086,0.72181773,110150.0,110140.0,0.001]
[1761927345290,0.7551134,110150.0,110140.0,0.001]
[1761927346796,1.0951134,110150.0,110140.0,0.001]
[1761927347006,3.56618021,110150.0,110140.0,0.001]
[1761927347223,3.56818021,110150.0,110140.0,0.001]
[1761927347638,2.52158707,110140.0,110130.0,0.0004]
[1761927347866,3.5564567,110140.0,110130.0,0.0004]
[1761927348073,3.5564567,110140.0,110130.0,0.00128374]
[1761927348284,3.5683167,110140.0,110130.0,0.00128374]
[1761927348965,3.5703167,110140.0,110130.0,0.00228374]
[1761927349429,3.63675593,110140.0,110130.0,0.00228374]
[1761927349839,3.5703167,110140.0,110130.0,0.00228374]
[1761927350257,3.55344103,110140.0,110130.0,0.00228374]
[1761927350873,3.56768211,110140.0,110130.0,0.00228374]
[1761927353604,3.09274063,110140.0,110130.0,0.00228374]
[1761927353821,3.07329685,110140.0,110130.0,0.00228374]
[1761927354267,3.00679629,110140.0,110130.0,0.00228374]
[1761927355317,1.00679629,110140.0,110130.0,0.00228374]
[1761927355756,1.43175443,110140.0,110130.0,0.00228374]
[1761927355959,1.52157344,110140.0,110130.0,0.00228374]
[1761927356395,3.54095332,110140.0,110130.0,0.00228374]
[1761927356606,3.62692228,110140.0,110130.0,0.00228374]
[1761927356813,3.62892228,110140.0,110130.0,0.00228374]
[1761927357020,3.61706228,110140.0,110130.0,0.00228374]
[1761927357222,3.64435827,110140.0,110130.0,0.00228374]
[1761927357437,2.81128652,110140.0,110130.0,0.00228374]
[1761927357617,3.31799767,110140.0,110130.0,0.00228374]
[1761927357848,3.31599767,110140.0,110130.0,0.00228374]
[1761927358050,3.38425632,110140.0,110130.0,0.00228374]
[1761927358256,3.38325632,110140.0,110130.0,0.00228374]
[1761927358667,3.38125632,110140.0,110130.0,0.00128374]
[1761927359044,3.38525632,110140.0,110130.0,0.00228374]
[1761927359260,3.35796033,110140.0,110130.0,0.00228374]
[1761927359453,3.33190945,110140.0,110130.0,0.00128374]
[1761927359685,3.35266127,110140.0,110130.0,0.00128374]
[1761927359860,3.36066127,110140.0,110130.0,0.00228374]
[1761927360495,3.07944283,110140.0,110130.0,0.00228374]
[1761927360908,3.04582187,110140.0,110130.0,0.00228374]
[1761927361977,3.04582187,110140.0,110130.0,0.20053729]
[1761927361978,2.5242348,110140.0,110130.0,0.20053729]
[1761927362186,0.008,110140.0,110130.0,0.22374729]
[1761927362812,0.008,110140.0,110130.0,0.30971625]
[1761927363019,0.002,110140.0,110130.0,0.30871625]
[1761927363429,0.003,110140.0,110130.0,0.31171625]
[1761927364663,0.001,110140.0,110130.0,0.31171625]
[1761927365180,0.001,110140.0,110130.0,0.22574729]
[1761927371454,0.18157147,110150.0,110140.0,0.18158707]
[1761927371731,0.18157058,110150.0,110140.0,0.22175707]
[1761927371949,0.18157058,110150.0,110140.0,0.22241982]
[1761927372193,0.65877289,110160.0,110140.0,0.22241982]
[1761927372423,0.6756422,110160.0,110150.0,0.05212]
[1761927372844,0.6756422,110160.0,110150.0,0.04912]
[1761927373292,0.17511262,110160.0,110150.0,0.04912]
[1761927374115,0.17511262,110160.0,110150.0,0.04812]
[1761927375154,0.17611262,110160.0,110150.0,0.22969058]
[1761927375367,0.18603624,110160.0,110150.0,0.23069058]
[1761927375571,0.18603624,110160.0,110150.0,0.04912]
[1761927375781,0.18603624,110160.0,110150.0,0.23069058]
[1761927375995,0.00448214,110160.0,110150.0,0.23069058]
[1761927376217,0.00148214,110160.0,110150.0,0.22969058]
[1761927376654,0.00248214,110160.0,110150.0,0.23169058]
[1761927376883,0.00148214,110160.0,110150.0,0.31765954]
[1761927377091,0.00048214,110160.0,110150.0,0.31565954]
[1761927377545,0.00048214,110160.0,110150.0,0.31610133]
[1761927377990,0.00048214,110160.0,110150.0,0.31710133]
[1761927378686,0.18203624,110160.0,110150.0,0.23113237]
[1761927378920,0.18303624,110160.0,110150.0,0.23413237]
[1761927379417,0.18303624,110160.0,110150.0,0.23113237]
[1761927379418,0.18203624,110160.0,110150.0,0.23113237]
[1761927379577,0.18203624,110160.0,110150.0,0.31710133]
[1761927379798,0.18303624,110160.0,110150.0,0.32210133]
[1761927380026,0.00148214,110160.0,110150.0,0.32210133]
[1761927380226,0.18303624,110160.0,110150.0,0.32210133]
[1761927380441,0.00148214,110160.0,110150.0,0.32210133]
[1761927380889,0.18303624,110160.0,110150.0,0.32210133]
[1761927381297,0.00148214,110160.0,110150.0,0.32210133]
[1761927381633,0.18303624,110160.0,110150.0,0.32210133]
[1761927381796,0.00148214,110160.0,110150.0,0.32210133]
[1761927384161,0.00148214,110160.0,110150.0,0.74720942]
[1761927386287,0.00148214,110160.0,110150.0,0.32210133]
[1761927388177,0.00148214,110160.0,110150.0,0.74720942]
[1761927388617,0.00148214,110160.0,110150.0,1.1233917]
[1761927392900,0.00148214,110160.0,110150.0,1.54849979]
[1761927393386,0.00148214,110160.0,110150.0,1.57577525]
[1761927393598,0.00148214,110160.0,110150.0,1.15066716]
[1761927393819,0.00148214,110160.0,110150.0,1.14966716]
[1761927394050,0.00148214,110160.0,110150.0,1.57477525]
[1761927394308,0.00148214,110160.0,110150.0,1.58677524]
[1761927394519,0.00048214,110160.0,110150.0,1.58177524]
[1761927394961,0.00148214,110160.0,110150.0,1.58877524]
[1761927395929,0.00148214,110160.0,110150.0,1.16366715]
[1761927396163,0.00148214,110160.0,110150.0,1.15366716]
[1761927398851,0.00148214,110160.0,110150.0,1.1263917]
[1761927404675,0.00148214,110160.0,110150.0,0.70128361]
[1761927404856,0.00148214,110160.0,110150.0,1.1263917]
[1761927405659,0.00148214,110160.0,110150.0,0.70128361]
[1761927405868,0.00148214,110160.0,110150.0,1.1263917]
[1761927406077,0.00148214,110160.0,110150.0,0.70128361]
[1761927406289,0.00148214,110160.0,110150.0,1.1263917]
[1761927406721,0.00148214,110160.0,110150.0,0.70128361]
[1761927406936,0.42659023,110160.0,110150.0,0.32510133]
[1761927407144,0.60814433,110160.0,110150.0,0.32510133]
[1761927407363,0.42659023,110160.0,110150.0,0.32510133]
[1761927407579,0.00148214,110160.0,110150.0,0.32510133]
[1761927408461,0.00148214,110160.0,110150.0,0.75020942]
[1761927410342,0.00148214,110160.0,110150.0,0.32510133]
[1761927412550,0.60814433,110160.0,110150.0,0.32631133]
[1761927412981,0.18303624,110160.0,110150.0,0.32631133]
[1761927413220,0.18303624,110160.0,110150.0,0.14474075]
[1761927413433,0.60814433,110160.0,110150.0,0.14474075]
[1761927413649,0.62332433,110160.0,110150.0,0.14474075]
[1761927413883,1.05541242,110160.0,110150.0,0.03389179]
[1761927414924,1.05441242,110160.0,110150.0,0.02489179]
[1761927415369,1.05441242,110160.0,110150.0,0.02689179]
[1761927415600,1.05441242,110160.0,110150.0,0.02789179]
[1761927419473,0.62941595,110160.0,110150.0,0.02789179]
[1761927421432,1.07505566,110160.0,110150.0,0.00344179]
[1761927421640,0.62941595,110160.0,110150.0,0.03081179]
[1761927421853,0.62941595,110160.0,110150.0,0.00344179]
[1761927422077,0.64983595,110160.0,110150.0,0.00344179]
[1761927422277,0.62941595,110160.0,110150.0,0.00344179]
[1761927422492,0.62941595,110160.0,110150.0,0.01921179]
[1761927423148,0.62941595,110160.0,110150.0,0.03081179]
[1761927423378,0.64365292,110160.0,110150.0,0.03081179]
[1761927423832,1.08929263,110160.0,110150.0,0.00344179]
[1761927424122,1.14084021,110160.0,110150.0,0.00344179]
[1761927424514,1.08929263,110160.0,110150.0,0.00344179]
[1761927424768,1.06887263,110160.0,110150.0,0.01921179]
[1761927424983,0.20325321,110160.0,110150.0,0.05569179]
[1761927425378,0.62847292,110160.0,110150.0,0.05569179]
[1761927425632,0.62149292,110160.0,110150.0,0.05569179]
[1761927425852,0.19627321,110160.0,110150.0,0.14166075]
[1761927426727,0.19627321,110160.0,110150.0,0.05569179]
[1761927426948,0.19627321,110160.0,110150.0,0.32323133]
[1761927427171,0.18203624,110160.0,110150.0,0.32323133]
[1761927427385,0.18203624,110160.0,110150.0,0.14166075]
[1761927427589,0.60725595,110160.0,110150.0,0.05569179]
[1761927428234,0.60725595,110160.0,110150.0,0.14166075]
[1761927428686,0.62243595,110160.0,110150.0,0.14166075]
[1761927428892,0.62243595,110160.0,110150.0,0.03081179]
[1761927430507,0.62243595,110160.0,110150.0,0.01504179]
[1761927430740,1.06807566,110160.0,110150.0,0.00344179]
[1761927430904,3.15263691,110160.0,110150.0,0.00344179]
[1761927431310,0.18160355,110130.0,110120.0,0.19370145]
[1761927431513,0.62200326,110130.0,110120.0,0.02698]
[1761927431719,0.62200326,110130.0,110120.0,0.01121]
[1761927431720,0.63359326,110130.0,110120.0,0.01121]
[1761927431939,0.63359326,110130.0,110120.0,0.02698]
[1761927432147,0.18162005,110120.0,110110.0,0.27920458]
[1761927432350,0.60683976,110120.0,110110.0,0.27920458]
[1761927432544,0.60683976,110120.0,110110.0,0.2949755]
[1761927433066,0.63360976,110120.0,110110.0,0.2949755]
[1761927433244,0.6340916,110120.0,110110.0,0.11333896]
[1761927433448,0.64451354,110120.0,110110.0,0.2999755]
[1761927433658,0.6083216,110120.0,110110.0,0.3248555]
[1761927434789,0.6083216,110120.0,110110.0,0.14421896]
[1761927435235,0.6083216,110120.0,110110.0,0.3258555]
[1761927435456,0.6235016,110120.0,110110.0,0.11933896]
[1761927435883,0.6350916,110120.0,110110.0,0.11933896]
[1761927436339,0.6350916,110120.0,110100.0,0.0116]
[1761927436574,2.18168604,110080.0,110070.0,1.32907008]
[1761927436798,3.87957929,110080.0,110070.0,0.08647542]
[1761927437038,2.52375209,110040.0,110020.0,0.02922435]
[1761927437244,3.87239136,110040.0,110020.0,0.02922435]
[1761927437454,3.48901317,110040.0,110020.0,0.02922435]
[1761927437663,3.4556929,110040.0,110030.0,0.01969388]
[1761927437882,3.38980866,110040.0,110030.0,0.01969388]
[1761927438085,1.04980866,110040.0,110030.0,0.01969388]
[1761927438310,1.04071276,110040.0,110030.0,0.01969388]
[1761927438527,0.00048125,110040.0,110030.0,0.04447388]
[1761927438729,0.42670096,110040.0,110030.0,0.06265074]
[1761927438936,0.42670096,110040.0,110030.0,0.04447388]
[1761927439154,0.42670096,110040.0,110030.0,0.11260924]
[1761927439372,0.00748125,110040.0,110030.0,0.11360924]
[1761927439588,0.18923334,110040.0,110030.0,0.11360924]
[1761927439800,0.00748125,110040.0,110030.0,0.11360924]
[1761927440214,0.75664914,110040.0,110030.0,0.04547388]
[1761927440421,0.18923334,110040.0,110030.0,0.04547388]
[1761927440635,0.00748125,110040.0,110030.0,0.04547388]
[1761927440840,0.18923334,110040.0,110030.0,0.11360924]
[1761927441671,0.00748125,110040.0,110030.0,0.11360924]
[1761927441870,0.00748125,110040.0,110030.0,0.33779544]
[1761927442080,0.00748125,110040.0,110030.0,0.31961858]
[1761927442291,0.00748125,110040.0,110030.0,0.69580086]
[1761927442498,0.00748125,110040.0,110030.0,0.47784998]
[1761927442703,0.00148125,110040.0,110030.0,0.47684998]
[1761927442902,0.18623334,110040.0,110030.0,0.45360924]
[1761927443172,0.18623334,110040.0,110030.0,0.11360924]
[1761927443565,0.18523334,110040.0,110030.0,0.11360924]
[1761927445152,0.19004334,110040.0,110030.0,0.02069388]
[1761927445356,0.18523334,110040.0,110030.0,0.02069388]
[1761927445561,0.93440123,110040.0,110030.0,0.04378388]
[1761927445994,0.93921123,110040.0,110030.0,0.00405388]
[1761927446395,0.93440123,110040.0,110030.0,0.02080388]
[1761927446608,0.18523334,110040.0,110030.0,0.04389388]
[1761927447042,0.18523334,110040.0,110030.0,0.11202924]
[1761927447243,0.00348125,110040.0,110030.0,0.1302061]
[1761927447456,0.18523334,110040.0,110030.0,0.11202924]
[1761927447680,0.00348125,110040.0,110030.0,0.11202924]
[1761927447882,0.18523334,110040.0,110030.0,0.11202924]
[1761927448311,0.00348125,110040.0,110030.0,0.29379784]
[1761927448531,0.54527731,110060.0,110050.0,0.02817917]
[1761927448755,2.0,110060.0,110050.0,0.02832402]
[1761927448913,2.0,110060.0,110050.0,0.05141402]
[1761927448914,0.18174809,110060.0,110050.0,0.05141402]
[1761927450130,0.18874809,110060.0,110050.0,0.05241402]
[1761927450575,0.19797566,110060.0,110050.0,0.05241402]
[1761927451211,0.18874809,110060.0,110050.0,0.05241402]
[1761927452237,0.20299905,110060.0,110050.0,0.05241402]
[1761927453342,0.20299905,110060.0,110050.0,0.05099002]
[1761927453520,0.20492905,110060.0,110050.0,0.02790002]
[1761927453889,0.20299905,110060.0,110050.0,0.03011118]
[1761927454091,0.20299905,110060.0,110050.0,0.05320118]
[1761927454533,0.20492905,110060.0,110050.0,0.03011118]
[1761927454740,0.95409694,110060.0,110050.0,0.01528601]
[1761927454946,0.95409694,110060.0,110050.0,0.03203601]
[1761927454947,2.95409694,110060.0,110050.0,0.03203601]
[1761927456219,2.20299905,110060.0,110050.0,0.05512601]
[1761927456831,0.20299905,110060.0,110050.0,0.05512601]
[1761927459466,0.20299905,110060.0,110050.0,0.10511011]
[1761927460801,0.20299905,110060.0,110050.0,0.10481592]
[1761927461290,0.20521905,110060.0,110050.0,0.03174182]
[1761927461513,0.95438694,110060.0,110050.0,0.03174182]
[1761927461730,0.95438694,110060.0,110050.0,0.05483182]
[1761927461943,0.95216694,110060.0,110050.0,0.05483182]
[1761927462149,0.9688966,110060.0,110050.0,0.05483182]
[1761927462388,0.98816632,110060.0,110050.0,0.05483182]
[1761927462811,0.98816632,110060.0,110050.0,0.03174182]
[1761927463012,0.98816632,110060.0,110050.0,0.05483182]
[1761927463213,0.98816632,110060.0,110050.0,0.05355022]
[1761927464122,0.23899843,110060.0,110050.0,0.05355022]
[1761927465130,0.98816632,110060.0,110050.0,0.05355022]
[1761927465350,0.99656129,110060.0,110050.0,0.05355022]
[1761927466363,0.29587084,110060.0,110050.0,0.05355022]
[1761927466585,0.28161988,110060.0,110050.0,0.05355022]
[1761927466799,0.23314244,110060.0,110050.0,0.05355022]
[1761927467412,0.28161988,110060.0,110050.0,0.05355022]
[1761927468225,1.03078777,110060.0,110050.0,0.05355022]
[1761927469162,3.03593777,110060.0,110050.0,0.00335601]
[1761927469636,3.03593777,110060.0,110050.0,0.01999601]
[1761927470316,0.09987179,110060.0,110050.0,0.04498601]
[1761927470532,0.28159085,110060.0,110050.0,0.04498601]
[1761927470752,0.09987179,110060.0,110050.0,0.09497011]
[1761927470969,0.28159085,110060.0,110050.0,0.09497011]
[1761927471635,0.28159085,110060.0,110050.0,0.27670568]
[1761927471846,0.28159085,110060.0,110050.0,0.22670568]
[1761927472065,0.23311341,110060.0,110050.0,0.24334568]
[1761927472727,0.05139435,110060.0,110050.0,0.24334568]
[1761927472960,0.23311341,110060.0,110050.0,0.24334568]
[1761927473400,0.23311341,110060.0,110050.0,0.06045667]
[1761927473624,0.23311341,110060.0,110050.0,0.24219224]
[1761927474043,0.23311341,110060.0,110050.0,0.04163]
[1761927474284,0.18175209,110040.0,110030.0,0.01171]
[1761927474506,0.21775147,110040.0,110030.0,0.21861296]
[1761927474725,0.21775147,110040.0,110030.0,0.05348436]
[1761927474933,0.21775147,110040.0,110030.0,0.23525296]
[1761927475150,0.03599938,110040.0,110030.0,0.23525296]
[1761927475367,0.21775147,110040.0,110030.0,0.23525296]
[1761927475590,0.21875147,110040.0,110030.0,0.23525296]
[1761927476327,0.22718036,110040.0,110030.0,0.05348436]
[1761927476551,0.22718036,110040.0,110030.0,0.28523706]
[1761927477204,0.22718036,110040.0,110030.0,0.10346846]
[1761927477421,0.22718036,110040.0,110030.0,0.28523706]
[1761927477847,0.21875147,110040.0,110030.0,0.28523706]
[1761927478078,0.03699938,110040.0,110030.0,0.28523706]
[1761927478287,0.04542689,110040.0,110030.0,0.28523706]
[1761927478721,0.03699938,110040.0,110030.0,0.28523706]
[1761927479572,0.03699938,110040.0,110030.0,0.33485152]
[1761927479791,0.03699938,110040.0,110030.0,0.33529404]
[1761927481076,0.01772966,110040.0,110030.0,0.33529404]
[1761927481401,0.03699938,110040.0,110030.0,0.33529404]
[1761927482874,0.03699938,110040.0,110030.0,0.28567958]
[1761927483292,0.03699938,110040.0,110030.0,0.28464148]
[1761927485445,0.19948175,110040.0,110030.0,0.28464148]
[1761927485886,0.21875147,110040.0,110030.0,0.28464148]
[1761927486091,0.03699938,110040.0,110030.0,0.28464148]
[1761927486302,0.03699938,110040.0,110030.0,0.29506561]
[1761927486533,0.01772966,110040.0,110030.0,0.28464148]
[1761927486948,0.19948175,110040.0,110030.0,0.28464148]
[1761927487294,0.03699938,110040.0,110030.0,0.28464148]
[1761927487503,0.01772966,110040.0,110030.0,0.28464148]
[1761927487703,0.19948175,110040.0,110030.0,0.28464148]
[1761927487911,0.03699938,110040.0,110030.0,0.28464148]
[1761927488110,0.01772966,110040.0,110030.0,0.28464148]
[1761927489158,0.001,110040.0,110030.0,0.28464148]
[1761927491678,0.001,110040.0,110030.0,0.33541438]
[1761927491903,0.68508129,110060.0,110050.0,0.02419]
[1761927492109,0.7019213,110060.0,110050.0,0.20592557]
[1761927492312,0.03610973,110060.0,110050.0,0.22157271]
[1761927492521,0.01926972,110070.0,110060.0,0.18171906]
[1761927492735,0.223125,110080.0,110060.0,0.23552906]
[1761927492940,0.24838954,110080.0,110070.0,0.23551255]
[1761927493148,0.239968,110080.0,110070.0,0.23551255]
[1761927493364,0.03611272,110080.0,110070.0,0.23551255]
[1761927493562,2.18168604,110080.0,110070.0,0.23551255]
[1761927493767,0.18168604,110080.0,110070.0,0.23551255]
[1761927493972,2.0,110080.0,110070.0,0.23551255]
[1761927494174,0.18168604,110080.0,110070.0,0.23065691]
[1761927494454,0.68157342,110080.0,110070.0,0.00014436]
[1761927494655,1.5301108,110080.0,110070.0,0.00014436]
[1761927495005,1.5371108,110080.0,110070.0,0.00114436]
[1761927495370,1.55649839,110080.0,110070.0,0.00114436]
[1761927495579,4.55644839,110080.0,110070.0,0.00114436]
[1761927496003,4.58368665,110080.0,110070.0,0.00114436]
[1761927496214,4.58568665,110080.0,110070.0,0.00114436]
[1761927496437,4.58368665,110080.0,110070.0,0.00114436]
[1761927497958,4.58568665,110080.0,110070.0,0.00114436]
[1761927498215,4.58368665,110080.0,110070.0,0.00114436]
[1761927499098,4.58568665,110080.0,110070.0,0.00114436]
[1761927500029,4.58368665,110080.0,110070.0,0.00114436]
[1761927500513,4.58568665,110080.0,110070.0,0.00114436]
[1761927501217,4.58368665,110080.0,110070.0,0.00114436]
[1761927501670,4.58568665,110080.0,110070.0,0.00114436]
[1761927502088,4.58368665,110080.0,110070.0,0.00114436]
[1761927502506,4.58568665,110080.0,110070.0,0.00114436]
[1761927502748,4.69723572,110080.0,110070.0,0.00114436]
[1761927503178,4.71148735,110080.0,110070.0,0.00114436]
[1761927503392,3.66580295,110050.0,110040.0,0.00022124]
[1761927503605,3.69396295,110050.0,110040.0,0.0003087]
[1761927503824,3.71778295,110050.0,110040.0,0.0003087]
[1761927504264,3.73715898,110050.0,110040.0,0.0003087]
[1761927504717,3.73715898,110050.0,110040.0,0.0033087]
[1761927505361,4.57804035,110050.0,110040.0,0.0033087]
[1761927505576,4.57804035,110050.0,110040.0,0.0043087]
[1761927505803,4.70797369,110050.0,110040.0,0.0043087]
[1761927506032,4.71838162,110050.0,110040.0,0.0043087]
[1761927506253,4.71838162,110050.0,110040.0,0.0033087]
[1761927506695,4.72038162,110050.0,110040.0,0.0033087]
[1761927507222,4.72038162,110050.0,110040.0,0.0003087]
[1761927507455,4.72038162,110050.0,110040.0,0.0013087]
[1761927507456,4.21042489,110050.0,110040.0,0.0013087]
[1761927507876,4.20942489,110050.0,110040.0,0.0003087]
[1761927508102,4.17124261,110050.0,110040.0,0.0003087]
[1761927508289,4.16683468,110050.0,110040.0,0.0013087]
[1761927508568,4.16883468,110050.0,110040.0,0.0013087]
[1761927509012,4.16283468,110050.0,110040.0,0.0003087]
[1761927509449,4.16083468,110050.0,110040.0,0.0003087]
[1761927509662,4.16283468,110050.0,110040.0,0.0003087]
[1761927509873,4.64690206,110050.0,110040.0,0.0003087]
[1761927510300,4.64890206,110050.0,110040.0,0.0003087]
[1761927510511,4.65729445,110050.0,110040.0,0.0003087]
[1761927510737,4.6841838,110050.0,110040.0,0.0003087]
[1761927510950,4.72436608,110050.0,110040.0,0.0013087]
[1761927512163,4.16683468,110050.0,110040.0,0.0013087]
[1761927513516,4.18108933,110050.0,110040.0,0.0013087]
[1761927513716,4.18308933,110050.0,110040.0,0.0013087]
[1761927513889,4.18108933,110050.0,110040.0,0.0013087]
[1761927514638,4.16427534,110050.0,110040.0,0.0013087]
[1761927514849,4.15002069,110050.0,110040.0,0.0013087]
[1761927515069,0.21589557,110050.0,110040.0,0.0175387]
[1761927515296,0.69996295,110050.0,110040.0,0.19929079]
[1761927515545,0.69996295,110050.0,110040.0,0.0013087]
[1761927515752,0.72378295,110050.0,110040.0,0.0013087]
[1761927515964,0.72178295,110050.0,110040.0,0.0013087]
[1761927516405,0.71878295,110050.0,110040.0,0.0003087]
[1761927517508,0.72078295,110050.0,110040.0,0.0013087]
[1761927519190,3.72078295,110050.0,110040.0,0.0013087]
[1761927522629,0.20138557,110050.0,110040.0,0.22241079]
[1761927522843,0.68545295,110050.0,110040.0,0.0406587]
[1761927523048,0.70927295,110050.0,110040.0,0.0013087]
[1761927524120,0.66880295,110050.0,110040.0,0.0175387]
[1761927524328,0.68545295,110050.0,110040.0,0.0175387]
[1761927524736,0.70927295,110050.0,110040.0,0.0013087]
[1761927524954,0.70927295,110050.0,110040.0,0.18306079]
[1761927525168,0.70927295,110050.0,110040.0,0.0013087]
[1761927526205,0.68545295,110050.0,110040.0,0.19929079]
[1761927526420,0.003,110050.0,110040.0,0.19929079]
[1761927526632,0.18473557,110050.0,110040.0,0.22229079]
[1761927526841,0.48706738,110050.0,110040.0,0.22229079]
[1761927527048,0.66880295,110050.0,110040.0,0.22229079]
[1761927527730,0.66880295,110050.0,110040.0,0.0405387]
[1761927527950,0.68501295,110050.0,110040.0,0.0175387]
[1761927528174,0.66880295,110050.0,110040.0,0.22229079]
[1761927528843,0.70914295,110050.0,110040.0,0.0013087]
[1761927533169,0.72339572,110050.0,110040.0,0.0013087]
[1761927537376,0.74278921,110050.0,110040.0,0.0013087]
[1761927538002,0.72339572,110050.0,110040.0,0.0013087]
[1761927540331,0.69926572,110050.0,110040.0,0.0167387]
[1761927540530,0.69926572,110050.0,110040.0,0.0397387]
[1761927540746,0.69926572,110050.0,110040.0,0.19849079]
[1761927541772,0.21519834,110050.0,110040.0,0.19849079]
[1761927541972,0.69926572,110050.0,110040.0,0.0167387]
[1761927542535,0.71868207,110050.0,110040.0,0.19849079]
[1761927543456,0.66068519,110050.0,110040.0,0.19849079]
[1761927543888,0.66068519,110050.0,110040.0,0.0167387]
[1761927544271,0.68481519,110050.0,110040.0,0.0167387]
[1761927544684,0.66068519,110050.0,110040.0,0.19849079]
[1761927545094,0.66068519,110050.0,110040.0,0.0167387]
[1761927545297,0.68481519,110050.0,110040.0,0.0167387]
[1761927545459,0.68481519,110050.0,110040.0,0.19849079]
[1761927545862,0.68481519,110050.0,110040.0,0.18306079]
[1761927546071,0.68481519,110050.0,110040.0,0.19849079]
[1761927546243,0.68481519,110050.0,110040.0,0.0167387]
[1761927546459,0.67779242,110050.0,110040.0,0.19849079]
[1761927546870,0.63022242,110050.0,110040.0,0.23298079]